bitfinex-derivatives/quotes_ETHF0:USTF0_20250320
["timestamp","ask_amount","ask_price","bid_price","bid_amount"]
[1742504253352,0.00758284,1980.1,1980.0,3.06828461]
[1742504254054,1.38698284,1980.1,1980.0,3.06828461]
[1742504254850,2.39751284,1980.1,1980.0,3.06828461]
[1742504261554,2.39751284,1980.1,1980.0,0.64920461]
[1742504262159,1.01063,1979.9,1979.8,0.00758284]
[1742504262356,4.22663,1979.9,1979.8,0.00758284]
[1742504262658,4.22663,1979.9,1979.8,0.65673238]
[1742504262852,6.19373,1979.9,1979.8,0.65673238]
[1742504265960,6.19373,1979.9,1979.8,0.00758284]
[1742504266663,1.01096,1979.3,1979.2,3.216]
[1742504266865,5.73487,1979.6,1979.2,2.34725]
[1742504267159,1.01094,1979.3,1979.2,2.34725]
[1742504267960,1.01094,1979.3,1979.2,4.40451863]
[1742504269361,1.01094,1979.3,1979.2,3.39356863]
[1742504270763,1.01094,1979.3,1979.2,4.40455863]
[1742504277772,1.01094,1979.3,1979.2,4.40451863]
[1742504278366,2.30263,1979.4,1979.3,1.01094]
[1742504278565,2.30263,1979.4,1979.3,2.33474]
[1742504278764,2.30263,1979.4,1979.3,2.98380863]
[1742504278965,1.01088,1979.5,1979.4,1.01089]
[1742504279175,2.42098,1979.5,1979.4,2.33469]
[1742504279470,1.4101,1979.5,1979.4,2.33469]
[1742504279672,2.42094,1979.5,1979.4,2.33469]
[1742504279869,3.2078,1979.6,1979.5,1.01084]
[1742504280170,1.4101,1979.6,1979.5,6.88914]
[1742504281364,2.42089,1979.6,1979.5,6.88914]
[1742504282074,2.42089,1979.6,1979.5,7.53820863]
[1742504286077,2.42089,1979.6,1979.5,6.19150863]
[1742504286284,2.42089,1979.6,1979.5,3.85686863]
[1742504286578,2.42089,1979.6,1979.5,4.86770863]
[1742504287669,2.42089,1979.6,1979.5,1.65990863]
[1742504288173,2.42089,1979.6,1979.5,3.05490863]
[1742504288378,2.42089,1979.6,1979.5,2.04406863]
[1742504288579,2.42089,1979.6,1979.5,3.05490863]
[1742504290782,2.42089,1979.6,1979.5,2.04406863]
[1742504290988,2.42089,1979.6,1979.5,3.05490863]
[1742504291281,2.42089,1979.6,1979.5,2.04406863]
[1742504291583,2.42089,1979.6,1979.5,3.05490863]
[1742504292287,2.42089,1979.6,1979.5,2.04406863]
[1742504295685,1.4101,1979.6,1979.5,3.05490863]
[1742504295887,1.4101,1979.6,1979.5,4.41780863]
[1742504296980,1.01074,1979.7,1979.6,1.01079]
[1742504297191,2.37284,1979.7,1979.6,1.01079]
[1742504297389,2.37284,1979.7,1979.6,2.39239]
[1742504297889,2.37284,1979.7,1979.6,3.04145863]
[1742504301391,8.94229,1979.9,1979.8,1.01068]
[1742504301392,1.01068,1979.9,1979.8,1.01068]
[1742504301988,1.01068,1979.9,1979.8,4.38544863]
[1742504304892,2.36708,1979.9,1979.8,4.38544863]
[1742504305888,2.36708,1979.9,1979.8,3.08074863]
[1742504309993,2.36708,1979.9,1979.8,2.07006863]
[1742504310195,2.36708,1979.9,1979.8,3.08074863]
[1742504310399,2.36708,1979.9,1979.8,2.07006863]
[1742504310695,2.36708,1979.9,1979.8,3.08074863]
[1742504312693,2.36708,1979.9,1979.8,2.07006863]
[1742504312895,2.36708,1979.9,1979.8,0.64906863]
[1742504313087,2.36708,1979.9,1979.8,1.65974863]
[1742504314000,2.36708,1979.9,1979.8,0.64906863]
[1742504314402,2.36708,1979.9,1979.8,1.96086863]
[1742504317396,2.36708,1979.9,1979.8,2.97154863]
[1742504319096,2.36708,1979.9,1979.8,1.96086863]
[1742504319401,2.36708,1979.9,1979.8,2.97154863]
[1742504322600,2.36708,1979.9,1979.8,1.96086863]
[1742504323407,2.36708,1979.9,1979.8,0.64906863]
[1742504324707,2.36708,1979.9,1979.8,1.96526863]
[1742504325902,2.36708,1979.9,1979.8,2.97594863]
[1742504330709,7.7792,1979.9,1979.2,3.2078]
[1742504331004,4.59462,1979.8,1979.5,1.0108]
[1742504331214,2.38487,1979.7,1979.6,2.43038]
[1742504331506,1.3741,1979.7,1979.6,3.09158]
[1742504331711,1.3741,1979.7,1979.6,6.29938]
[1742504332009,1.01072,1979.8,1979.7,1.01073]
[1742504332210,1.01072,1979.8,1979.7,1.4196]
[1742504332709,1.01072,1979.8,1979.7,2.43033]
[1742504333815,2.38475,1979.9,1979.8,1.01068]
[1742504334112,2.38475,1979.9,1979.8,3.05468]
[1742504335807,1.01061,1980.0,1979.9,1.01059]
[1742504336003,1.01061,1980.0,1979.9,3.01429]
[1742504336004,2.31591,1980.0,1979.9,3.01429]
[1742504336404,2.31591,1980.0,1979.9,2.0037]
[1742504336808,2.31591,1980.0,1979.9,3.01433]
[1742504337008,2.31591,1980.0,1979.9,2.0037]
[1742504337313,2.31591,1980.0,1979.9,3.01433]
[1742504341814,2.31591,1980.0,1979.9,2.0037]
[1742504342013,3.61651,1980.0,1979.9,2.0037]
[1742504342922,3.61651,1980.0,1979.9,2.64771037]
[1742504348724,3.61651,1980.0,1979.9,1.98741037]
[1742504350419,3.61651,1980.0,1979.9,0.64401037]
[1742504356533,3.61651,1980.0,1979.9,1.30401037]
[1742504357031,3.61651,1980.0,1979.9,0.64401037]
[1742504359829,3.61651,1980.0,1979.9,2.04471037]
[1742504361032,0.00758284,1980.1,1980.0,1.01058]
[1742504361224,1.01811284,1980.1,1980.0,3.66138]
[1742504361423,1.01811284,1980.1,1980.0,4.30539037]
[1742504361625,0.00758284,1980.1,1980.0,4.30539037]
[1742504361931,1.01811284,1980.1,1980.0,4.30539037]
[1742504362235,1.35818284,1980.1,1980.0,4.30539037]
[1742504363239,2.36871284,1980.1,1980.0,4.30539037]
[1742504363735,1.35818284,1980.1,1980.0,4.30539037]
[1742504365138,0.00758284,1980.1,1980.0,4.30539037]
[1742504366338,1.32308284,1980.1,1980.0,4.30539037]
[1742504368137,0.00758284,1980.1,1980.0,4.30539037]
[1742504371836,0.00758284,1980.1,1980.0,12.69639037]
[1742504372539,1.30918284,1980.1,1980.0,12.69639037]
[1742504377246,0.00758284,1980.1,1980.0,12.69639037]
[1742504377545,0.00758284,1980.1,1980.0,13.09726067]
[1742504380649,0.00758284,1980.1,1980.0,12.69639037]
[1742504381543,0.00758284,1980.1,1980.0,13.1093913]
[1742504381950,0.00758284,1980.1,1980.0,12.69639037]
[1742504390946,0.00758284,1980.1,1980.0,15.91039037]
[1742504391352,2.03798284,1980.1,1980.0,15.91039037]
[1742504392058,2.03798284,1980.1,1980.0,6.15539037]
[1742504393061,2.03798284,1980.1,1980.0,6.82269037]
[1742504393448,2.03798284,1980.1,1980.0,3.60869037]
[1742504393655,3.04851284,1980.1,1980.0,1.65459037]
[1742504393853,3.70511284,1980.1,1980.0,1.65459037]
[1742504397352,3.70511284,1980.1,1980.0,0.64401037]
[1742504399265,3.70511284,1980.1,1980.0,1.65459037]
[1742504399457,3.70511284,1980.1,1980.0,0.64401037]
[1742504404365,0.00758284,1980.1,1980.0,4.86239037]
[1742504404570,0.00758284,1980.1,1980.0,6.83299037]
[1742504404765,0.00758284,1980.1,1980.0,7.48369037]
[1742504404972,5.04969,1981.3,1980.2,8.391]
[1742504405172,0.701,1980.8,1980.7,1.01022]
[1742504405471,1.71117,1980.8,1980.7,1.01022]
[1742504405772,3.68917,1980.8,1980.7,2.33522]
[1742504405972,3.68917,1980.8,1980.7,3.62723037]
[1742504406170,0.00758284,1980.9,1980.8,1.01017]
[1742504406367,1.01003,1981.1,1981.0,1.01002]
[1742504406671,1.3623,1981.1,1980.7,7.02535037]
[1742504406968,1.3623,1981.1,1980.9,1.01007]
[1742504407163,1.3623,1981.1,1981.0,1.01007]
[1742504407164,2.37236,1981.1,1981.0,1.01007]
[1742504407359,1.01012,1981.0,1980.9,1.01008]
[1742504407569,2.37237,1981.0,1980.9,4.21788]
[1742504408069,1.3623,1981.0,1980.9,4.85944676]
[1742504408270,0.00758284,1981.2,1981.1,1.01002]
[1742504408468,0.00758284,1981.2,1981.1,7.43182]
[1742504408668,1.36988284,1981.2,1981.1,7.43182]
[1742504408870,0.00758284,1981.2,1981.1,8.0727702]
[1742504409066,1.01755284,1981.2,1981.1,8.0727702]
[1742504409272,1.00983,1981.5,1981.4,1.00979]
[1742504409472,1.00983,1981.5,1981.4,7.43159]
[1742504409670,1.0098,1981.6,1981.5,1.00976]
[1742504410069,2.41667,1981.7,1981.6,1.00976]
[1742504410369,2.41667,1981.7,1981.6,4.22476]
[1742504410777,1.00977,1981.7,1981.6,4.22476]
[1742504410967,1.00977,1981.7,1981.6,4.86387057]
[1742504411164,2.52382,1982.1,1981.9,1.00956]
[1742504411364,1.0095,1982.2,1982.1,1.00946]
[1742504411564,2.52365,1982.3,1981.8,3.2078]
[1742504411762,2.52365,1982.3,1981.8,4.23266]
[1742504411763,1.00966,1981.9,1981.8,4.23266]
[1742504412180,2.41656,1981.9,1981.8,4.87072818]
[1742504412476,4.21724,1982.3,1981.8,6.4308]
[1742504412672,4.21724,1982.3,1982.2,1.00946]
[1742504412673,4.21725,1982.3,1982.2,1.00946]
[1742504412976,2.4258,1982.6,1982.5,1.00931]
[1742504413179,1.4165,1982.6,1982.5,1.00931]
[1742504413582,5.73023,1983.2,1982.6,2.52305]
[1742504413880,1.00909,1983.0,1982.9,1.00906]
[1742504414468,1.00902,1983.1,1983.0,1.009]
[1742504414672,1.00905,1983.0,1982.9,4.24006]
[1742504414872,1.4165,1983.1,1983.0,1.00901]
[1742504415082,4.21678,1983.2,1983.1,1.009]
[1742504415280,1.00904,1983.1,1983.0,1.00901]
[1742504415582,2.32084,1983.1,1983.0,1.00901]
[1742504415775,1.3118,1983.1,1983.0,1.00901]
[1742504415981,0.6518,1983.4,1983.3,1.0089]
[1742504416181,3.2078,1984.3,1983.3,49.8648]
[1742504416478,3.2078,1983.6,1983.1,3.2078]
[1742504416785,2.522,1983.5,1983.0,3.286]
[1742504417087,1.0089,1983.3,1983.2,0.00756353]
[1742504417889,2.32069,1983.4,1983.2,0.00756353]
[1742504418081,1.3118,1983.4,1983.3,1.0089]
[1742504418276,1.00873,1983.7,1983.6,1.00875]
[1742504418587,1.00876,1983.6,1983.5,1.00876]
[1742504418782,1.0089,1983.3,1983.2,0.00756353]
[1742504419496,1.00909,1983.0,1982.9,1.00908]
[1742504419701,1.00913,1982.9,1982.8,1.0091]
[1742504419995,2.52294,1982.8,1982.2,9.02143]
[1742504420200,1.00922,1982.7,1982.6,1.00926]
[1742504420393,1.00928,1982.6,1982.5,1.00929]
[1742504420593,1.00928,1982.6,1982.5,1.01685353]
[1742504421192,1.00928,1982.6,1982.5,1.01687353]
[1742504421501,1.00928,1982.6,1982.5,0.00756353]
[1742504421794,1.00928,1982.6,1982.5,1.01687353]
[1742504421996,1.00928,1982.6,1982.5,0.00756353]
[1742504422392,2.30768,1982.6,1982.5,0.00756353]
[1742504424898,1.00946,1982.2,1982.1,1.4066]
[1742504425098,1.00946,1982.2,1982.1,1.00951]
[1742504425294,1.00951,1982.1,1982.0,4.29852]
[1742504425496,4.5479,1982.3,1981.9,1.2991]
[1742504425800,1.0095,1982.2,1982.1,1.00948]
[1742504426001,2.3496,1982.2,1982.1,1.00948]
[1742504426202,2.34961,1982.2,1982.1,1.00951]
[1742504426997,1.00951,1982.1,1982.0,1.01708353]
[1742504427301,2.34961,1982.1,1982.0,0.00756353]
[1742504431200,1.3401,1982.1,1982.0,0.00756353]
[1742504431403,1.3401,1982.1,1982.0,1.01712353]
[1742504431711,0.6886,1982.3,1982.2,1.00946]
[1742504432409,4.29635,1982.5,1982.4,1.00936]
[1742504432610,1.00939,1982.4,1982.3,1.00938]
[1742504433107,2.39489,1982.4,1982.3,1.00938]
[1742504433813,1.00943,1982.3,1982.2,1.00941]
[1742504434012,2.38243,1982.3,1982.2,1.00941]
[1742504434216,1.373,1982.3,1982.2,1.00941]
[1742504434408,2.38241,1982.3,1982.2,2.32591]
[1742504435409,2.38241,1982.3,1982.2,5.53371]
[1742504435810,2.38241,1982.3,1982.2,6.17016058]
[1742504437611,1.373,1982.3,1982.2,6.17016058]
[1742504438507,2.38241,1982.3,1982.2,6.17016058]
[1742504438914,1.373,1982.3,1982.2,6.17016058]
[1742504439910,2.38241,1982.3,1982.2,6.17016058]
[1742504440109,1.373,1982.3,1982.2,6.17016058]
[1742504441315,2.38241,1982.3,1982.2,6.17016058]
[1742504441510,1.373,1982.3,1982.2,6.17016058]
[1742504442208,2.38241,1982.3,1982.2,6.17016058]
[1742504442610,1.373,1982.3,1982.2,6.17016058]
[1742504443714,2.38241,1982.3,1982.2,2.96236058]
[1742504443917,1.373,1982.3,1982.2,2.96236058]
[1742504444115,2.38241,1982.3,1982.2,2.96236058]
[1742504446318,2.38241,1982.3,1982.2,0.63645058]
[1742504446818,5.65741,1982.3,1982.2,0.63645058]
[1742504447017,6.98791,1982.3,1982.2,0.63645058]
[1742504448816,5.65741,1982.3,1982.2,1.64591058]
[1742504449517,2.38241,1982.3,1982.2,2.96991058]
[1742504451621,2.38241,1982.3,1982.2,1.96045058]
[1742504452012,2.38241,1982.3,1982.2,0.63645058]
[1742504454324,2.38241,1982.3,1982.2,1.99365058]
[1742504454622,2.38241,1982.3,1982.2,3.00311058]
[1742504455023,1.373,1982.3,1982.2,3.00311058]
[1742504456125,2.38241,1982.3,1982.2,3.00311058]
[1742504456718,2.38241,1982.3,1982.2,11.39411058]
[1742504457029,2.38241,1982.3,1982.2,3.00311058]
[1742504457219,1.373,1982.3,1982.2,3.00311058]
[1742504457622,2.38241,1982.3,1982.2,3.00311058]
[1742504457927,1.373,1982.3,1982.2,6.21091058]
[1742504459225,2.30921,1982.6,1982.5,1.00931]
[1742504459721,0.00749917,1982.8,1982.7,1.0092]
[1742504459921,1.3272,1983.1,1983.0,1.00905]
[1742504460116,2.52224,1983.4,1983.3,1.00885]
[1742504460117,1.00891,1983.4,1983.3,1.00885]
[1742504460319,0.6774,1983.5,1983.4,1.00885]
[1742504460513,3.0166,1983.5,1983.4,1.00885]
[1742504461429,3.0166,1983.5,1983.4,1.65045014]
[1742504461725,3.0166,1983.5,1983.4,0.64160014]
[1742504463631,1.00885,1983.4,1983.3,0.00756353]
[1742504463928,2.41775,1983.4,1983.3,1.01646353]
[1742504465430,2.41775,1983.4,1983.3,1.65556155]
[1742504465628,2.41775,1983.4,1983.3,0.64666155]
[1742504466222,2.41775,1983.4,1983.3,1.01646353]
[1742504467521,2.41775,1983.4,1983.3,0.00756353]
[1742504467725,5.62555,1983.4,1983.3,0.00756353]
[1742504468232,2.41775,1983.4,1983.3,0.00756353]
[1742504471125,1.00905,1983.0,1982.9,4.87486]
[1742504471430,1.00905,1983.0,1982.9,6.16576]
[1742504474033,1.00905,1983.0,1982.9,2.95796]
[1742504475435,1.00899,1983.2,1983.1,1.00893]
[1742504475739,2.37609,1983.2,1983.1,1.00893]
[1742504475931,2.35875,1983.5,1983.1,4.5248]
[1742504476138,3.73005,1983.5,1983.4,1.00885]
[1742504476340,2.35875,1983.5,1983.4,1.00885]
[1742504477036,2.35875,1983.5,1983.4,2.41815]
[1742504477231,1.00869,1983.8,1983.7,1.00865]
[1742504478127,1.00856,1984.1,1984.0,1.00849]
[1742504478837,1.00854,1984.0,1983.9,1.01611353]
[1742504481436,1.00854,1984.0,1983.9,0.00756353]
[1742504481636,1.00854,1984.0,1983.9,1.01615353]
[1742504481837,1.00854,1984.0,1983.9,2.40355353]
[1742504484432,1.00854,1984.0,1983.9,1.39496353]
[1742504484633,1.00854,1984.0,1983.9,2.40355353]
[1742504485433,1.00854,1984.0,1983.9,1.39496353]
[1742504486441,1.00854,1984.0,1983.9,2.40355353]
[1742504487334,1.00854,1984.0,1983.9,1.39496353]
[1742504487534,1.00854,1984.0,1983.9,0.00756353]
[1742504488138,1.00854,1984.0,1983.9,1.30146353]
[1742504490140,1.00854,1984.0,1983.9,0.00756353]
[1742504490341,1.65604,1984.0,1983.9,0.00756353]
[1742504491442,1.65604,1984.0,1983.9,1.32936353]
[1742504493245,1.65604,1984.0,1983.9,0.00756353]
[1742504494346,2.34104,1984.0,1983.9,0.00756353]
[1742504495639,5.54884,1984.0,1983.9,0.00756353]
[1742504495843,5.54884,1984.0,1983.5,3.2078]
[1742504495844,1.0087,1983.7,1983.6,1.00872]
[1742504496043,1.0087,1983.7,1983.6,2.32492]
[1742504496648,1.0087,1983.7,1983.6,2.96452199]
[1742504496850,1.00868,1983.8,1983.7,1.0087]
[1742504497145,2.41252,1983.9,1983.8,1.00865]
[1742504497346,2.41252,1983.9,1983.8,2.99465]
[1742504498544,2.41252,1983.9,1983.8,3.63425199]
[1742504498739,1.4039,1983.9,1983.8,3.63425199]
[1742504498939,2.41249,1983.9,1983.8,3.63425199]
[1742504499141,0.00756353,1984.2,1984.1,1.00849]
[1742504499344,1.01600353,1984.2,1984.1,1.00849]
[1742504499740,0.00756353,1984.2,1984.1,1.00849]
[1742504499940,1.01600353,1984.2,1984.1,1.64809199]
[1742504500139,2.41960353,1984.2,1984.1,1.64809199]
[1742504500342,0.00756353,1984.2,1984.1,1.64809199]
[1742504500541,7.15512745,1985.1,1984.7,1.00819]
[1742504500737,1.00818,1984.8,1984.7,1.00814]
[1742504500940,1.00819,1984.7,1984.6,1.64982]
[1742504501143,2.36039,1984.7,1984.6,2.41172]
[1742504501340,2.36039,1984.7,1984.6,3.05132199]
[1742504501542,2.36039,1984.7,1984.6,2.04310199]
[1742504501843,2.36039,1984.7,1984.6,0.63960199]
[1742504502142,6.25549,1984.7,1984.6,0.63960199]
[1742504502343,1.00824,1984.6,1984.5,0.00756353]
[1742504502545,6.31194,1984.6,1984.5,0.00756353]
[1742504504243,6.31194,1984.6,1984.3,1.4035]
[1742504504244,1.00844,1984.2,1984.1,0.6416]
[1742504504545,1.00844,1984.2,1984.1,1.65009]
[1742504504749,1.00844,1984.2,1984.1,1.28188738]
[1742504505052,1.00844,1984.2,1984.1,1.64877738]
[1742504505250,2.37304,1984.2,1984.1,1.64877738]
[1742504505759,2.37304,1984.2,1984.1,0.64028738]
[1742504505943,3.01224,1984.2,1984.1,0.64028738]
[1742504508547,3.01224,1984.2,1984.1,1.64877738]
[1742504508748,3.01224,1984.2,1984.1,0.64028738]
[1742504508943,3.01224,1984.2,1984.1,1.64877738]
[1742504509143,3.01224,1984.2,1984.1,1.00849]
[1742504509447,1.00849,1984.1,1984.0,2.31367353]
[1742504509652,2.40579,1984.1,1984.0,2.31367353]
[1742504510148,2.40579,1984.1,1984.0,2.95481196]
[1742504510943,1.00847,1984.2,1984.1,1.00849]
[1742504511853,2.40577,1984.2,1984.1,1.64962843]
[1742504513052,2.40577,1984.2,1984.1,0.64113843]
[1742504513260,5.68777,1984.2,1984.1,0.64113843]
[1742504513447,8.18777,1984.2,1984.1,0.29443055]
[1742504513649,1.00849,1984.1,1984.0,0.00756353]
[1742504513847,6.26799,1984.1,1984.0,0.00756353]
[1742504521761,3.06019,1984.1,1984.0,0.00756353]
[1742504522549,2.39249,1984.1,1984.0,0.00756353]
[1742504522752,1.00849,1984.1,1984.0,2.66256353]
[1742504523162,2.40329,1984.1,1984.0,2.66256353]
[1742504524164,2.40329,1984.1,1984.0,3.67110353]
[1742504527552,2.40329,1984.1,1984.0,4.30953695]
[1742504528165,1.00849,1984.1,1984.0,4.30953695]
[1742504528361,3.2078,1984.4,1984.1,2.52124]
[1742504528665,1.00836,1984.5,1984.4,1.0083]
[1742504528864,1.00829,1984.5,1984.4,1.0083]
[1742504529163,1.00829,1984.5,1984.4,1.64673342]
[1742504529364,1.00829,1984.5,1984.4,2.32453342]
[1742504529554,1.00829,1984.5,1984.4,3.65553342]
[1742504531368,1.00829,1984.5,1984.4,1.96943342]
[1742504531664,1.00829,1984.5,1984.4,2.97777342]
[1742504531865,2.36579,1984.5,1984.4,2.97777342]
[1742504532069,1.00829,1984.5,1984.4,2.97777342]
[1742504534866,2.39899,1984.5,1984.4,2.97777342]
[1742504535060,5.60679,1984.5,1984.4,1.96943342]
[1742504535366,5.60679,1984.5,1984.4,1.331]
[1742504536164,5.60679,1984.5,1984.0,8.25792353]
[1742504536165,1.00849,1984.1,1984.0,4.29604353]
[1742504536469,1.00849,1984.1,1984.0,5.61704353]
[1742504536661,1.00849,1984.1,1984.0,6.25546217]
[1742504537667,1.00849,1984.1,1984.0,7.65106217]
[1742504537862,1.00849,1984.1,1984.0,7.01264353]
[1742504538164,1.00849,1984.1,1984.0,7.6510908]
[1742504538954,1.00849,1984.1,1984.0,4.3710908]
[1742504539967,1.00849,1984.1,1984.0,3.3626108]
[1742504540162,1.00849,1984.1,1984.0,2.0416108]
[1742504540468,1.66359,1984.1,1984.0,0.6460108]
[1742504540961,1.66359,1984.1,1984.0,0.00756353]
[1742504543169,1.66359,1984.1,1984.0,0.64618002]
[1742504543372,1.66359,1984.1,1984.0,1.99978002]
[1742504545366,1.66359,1984.1,1984.0,3.00832002]
[1742504545871,1.66359,1984.1,1984.0,1.99978002]
[1742504547775,1.66359,1984.1,1984.0,3.00832002]
[1742504547975,1.66359,1984.1,1984.0,1.99978002]
[1742504548472,1.66359,1984.1,1984.0,3.00832002]
[1742504548772,1.66359,1984.1,1984.0,1.99978002]
[1742504549472,1.66359,1984.1,1984.0,3.00832002]
[1742504550160,1.66359,1984.1,1984.0,1.99978002]
[1742504551866,2.97869,1984.1,1984.0,1.99978002]
[1742504552269,2.97869,1984.1,1984.0,3.00832002]
[1742504552673,2.97869,1984.1,1984.0,1.99978002]
[1742504553674,2.97869,1984.1,1984.0,3.00832002]
[1742504554271,2.97869,1984.1,1984.0,1.99978002]
[1742504554576,2.97869,1984.1,1984.0,3.00832002]
[1742504554769,2.97869,1984.1,1984.0,1.99978002]
[1742504559082,2.97869,1984.1,1984.0,3.00832002]
[1742504559382,2.32359,1984.1,1984.0,3.00832002]
[1742504559784,2.32359,1984.1,1984.0,3.68742002]
[1742504562284,1.00845,1984.3,1984.2,1.0084]
[1742504562591,2.35955,1984.3,1984.2,1.0084]
[1742504562789,2.35955,1984.3,1984.2,1.64701649]
[1742504562989,2.35955,1984.3,1984.2,3.03161649]
[1742504564091,2.35955,1984.3,1984.2,2.02321649]
[1742504565791,2.35955,1984.3,1984.2,3.03165649]
[1742504570902,2.35955,1984.3,1984.2,2.02321649]
[1742504571399,2.35955,1984.3,1984.2,3.03165649]
[1742504572904,2.35955,1984.3,1984.2,2.02321649]
[1742504573298,2.35955,1984.3,1984.2,4.92581649]
[1742504579009,0.7078,1984.5,1984.4,1.00834]
[1742504579209,2.0485,1984.5,1984.4,1.00834]
[1742504579503,2.34899,1984.5,1984.4,2.97565649]
[1742504579697,1.3407,1984.5,1984.4,2.97565649]
[1742504580204,2.34899,1984.5,1984.4,2.97565649]
[1742504586112,2.34899,1984.5,1984.4,4.99135649]
[1742504589717,1.3407,1984.5,1984.4,4.99135649]
[1742504590508,1.3407,1984.5,1984.4,8.19915649]
[1742504590715,1.00828,1984.6,1984.5,1.00829]
[1742504590913,2.41718,1984.6,1984.5,2.94249]
[1742504591308,1.4089,1984.6,1984.5,6.48490649]
[1742504592115,0.00756353,1984.8,1984.7,1.00819]
[1742504592810,1.00801,1985.1,1984.8,1.00814]
[1742504593015,4.93499,1985.2,1985.1,1.00793]
[1742504594009,1.01549353,1985.3,1985.2,1.00791]
[1742504594211,0.00756353,1985.3,1985.1,0.63861649]
[1742504594411,1.65133,1985.2,1985.1,0.63861649]
[1742504594807,1.00798,1985.1,1985.0,0.00756353]
[1742504595008,4.21578,1985.1,1985.0,0.00756353]
[1742504595508,2.30508,1985.1,1985.0,0.00756353]
[1742504596009,5.51288,1985.1,1985.0,0.00756353]
[1742504596507,5.51288,1985.1,1985.0,0.76706353]
[1742504596706,8.75288,1985.1,1985.0,0.76706353]
[1742504598006,8.75288,1985.1,1985.0,1.53336353]
[1742504598711,8.75288,1985.1,1985.0,1.67016353]
[1742504599605,5.51288,1985.1,1985.0,1.67016353]
[1742504599811,8.75488,1985.1,1985.0,1.67016353]
[1742504600411,8.75488,1985.1,1985.0,3.08656353]
[1742504600619,5.54608,1985.1,1985.0,3.08656353]
[1742504601313,8.75388,1985.1,1985.0,3.08656353]
[1742504603113,2.30508,1985.1,1985.0,1.67016353]
[1742504603412,1.2971,1985.1,1985.0,2.98916353]
[1742504603611,1.2971,1985.1,1985.0,4.64480353]
[1742504603812,1.2971,1985.1,1985.0,5.28326561]
[1742504604919,1.01548353,1985.3,1985.2,1.00793]
[1742504605113,0.00756353,1985.3,1985.2,1.00793]
[1742504605613,1.01544353,1985.3,1985.2,0.6788]
[1742504606118,1.01544353,1985.3,1985.2,1.31726208]
[1742504606333,2.36044353,1985.3,1985.2,1.31726208]
[1742504606819,1.35256353,1985.3,1985.2,3.68729208]
[1742504607018,1.35256353,1985.3,1985.2,3.92109208]
[1742504609120,2.36044353,1985.3,1985.2,2.91316208]
[1742504609719,2.36044353,1985.3,1985.2,0.87226208]
[1742504610321,2.36044353,1985.3,1985.2,0.2338]
[1742504610511,5.56824353,1985.3,1985.2,0.2338]
[1742504611315,8.80724353,1985.3,1985.2,0.2338]
[1742504612021,8.80724353,1985.3,1985.2,2.7412]
[1742504612419,8.80724353,1985.3,1985.2,4.7561]
[1742504615222,5.56824353,1985.3,1985.2,4.7561]
[1742504615525,2.36044353,1985.3,1985.2,4.7561]
[1742504616127,2.36044353,1985.3,1985.2,6.1443]
[1742504618025,2.36044353,1985.3,1985.2,6.78282311]
[1742504621630,2.36044353,1985.3,1985.2,7.54882311]
[1742504622530,2.36044353,1985.3,1985.2,7.68562311]
[1742504623733,2.39059303,1985.3,1985.2,7.68562311]
[1742504624941,2.39059303,1985.3,1985.2,8.69355311]
[1742504625241,1.04559303,1985.3,1985.2,8.69355311]
[1742504626140,2.32689303,1985.3,1985.2,8.69355311]
[1742504626438,2.32689303,1985.3,1985.2,9.45375311]
[1742504626835,2.32689303,1985.3,1985.2,8.44582311]
[1742504627537,5.53469303,1985.3,1985.2,8.44582311]
[1742504627738,5.56416824,1985.3,1985.2,8.44582311]
[1742504628430,5.61245375,1985.3,1985.2,8.44582311]
[1742504631033,2.40465375,1985.3,1985.2,8.44582311]
[1742504634338,0.11547375,1985.3,1985.2,11.67782311]
[1742504634542,1.00773,1985.6,1985.5,1.00778]
[1742504634940,1.00773,1985.6,1985.5,0.63852311]
[1742504635331,4.21544,1985.8,1985.7,1.00768]
[1742504635541,4.4913,1985.8,1985.6,1.00769]
[1742504635739,1.00768,1985.7,1985.6,2.34589]
[1742504636243,5.49895,1985.8,1985.7,1.00768]
[1742504636546,5.49895,1985.8,1985.7,2.34588]
[1742504637049,5.49895,1985.8,1985.7,1.97672311]
[1742504637444,5.49895,1985.8,1985.7,2.21052311]
[1742504637743,5.49895,1985.8,1985.7,0.87232311]
[1742504638042,5.49895,1985.8,1985.7,0.2338]
[1742504641739,5.49895,1985.8,1985.7,0.9943]
[1742504642144,5.49895,1985.8,1985.7,3.0087]
[1742504645648,5.49895,1985.8,1985.7,3.1455]
[1742504646248,5.49895,1985.8,1985.7,3.9112]
[1742504648546,8.72795,1985.8,1985.7,3.9112]
[1742504648942,8.72895,1985.8,1985.7,3.9112]
[1742504649142,5.49895,1985.8,1985.7,3.9112]
[1742504649342,8.72895,1985.8,1985.7,3.9112]
[1742504656242,5.52115,1985.8,1985.7,3.9112]
[1742504656447,8.72895,1985.8,1985.7,3.9112]
[1742504658648,8.72895,1985.8,1985.7,1.00943272]
[1742504658956,8.81698695,1985.8,1985.7,2.72e-06]
[1742504659353,11.31698695,1985.8,1985.7,2.72e-06]
[1742504659564,11.22895,1985.8,1985.7,2.72e-06]
[1742504660443,11.31699741,1985.8,1985.7,2.72e-06]
[1742504660756,12.12160247,1985.8,1985.7,2.72e-06]
[1742504661358,1.00788,1985.3,1985.2,2.5074]
[1742504661553,7.44268,1985.3,1985.2,2.5074]
[1742504663053,7.44268,1985.3,1985.2,0.37918]
[1742504663258,1.00798,1985.1,1985.0,0.00756353]
[1742504663551,7.44378,1985.1,1985.0,0.00756353]
[1742504664048,9.47548,1985.1,1985.0,0.00756353]
[1742504675957,9.47548,1985.1,1985.0,3.53e-06]
[1742504676159,9.56354446,1985.1,1985.0,3.53e-06]
[1742504679567,9.56354238,1985.1,1985.0,3.53e-06]
[1742504679769,9.47548,1985.1,1985.0,3.53e-06]
[1742504680571,9.47348,1985.1,1985.0,3.53e-06]
[1742504684573,9.56154133,1985.1,1985.0,3.53e-06]
[1742504686379,9.56154182,1985.1,1985.0,3.53e-06]
[1742504687278,9.47348,1985.1,1985.0,3.53e-06]
[1742504687875,8.79768,1985.1,1985.0,3.53e-06]